Cogmind - Beta 11.2 @@@ ROGUE MODE // 2023.02.02 @ 12:59:58 Player: Danny Boibee Result: Destroyed by G-47 Trooper with Particle Gun Performance ------------- Evolutions (3) 1500 Regions Visited (6) 1200 Robots Destroyed (91) 455 Value Destroyed (1999) 1999 Prototype IDs (5) 100 Alien Tech Used (0) 0 Bonus (365) 365 TOTAL SCORE: 5619 Bonus ------- High Alert Combat Kills 461 Friendly Fire -96 Cogmind --------- Core Integrity 0/700 Matter 175/300 Energy 100/100 System Corruption 14% Temperature Cool (9) Movement Core (50) Location -7/Factory Parts ------- > --- POWER (2) -------- (None) > --- PROPULSION (5) --- Armored Huge Wheel > --- UTILITY (4) ------ Hacking Suite > --- WEAPON (2) ------- Remote Datajack > --- INVENTORY (5) ---- Armored Huge Wheel Armored Huge Wheel Melee Analysis Suite Peak State ------------ > --- POWER ------------ (None) > --- PROPULSION ------- Improved Carbon-fiber Leg Armored Huge Wheel Improved Antigrav System > --- UTILITY ---------- Hardened Light Armor Plating Hacking Suite Hacking Suite Hacking Suite > --- WEAPON ----------- Powered Hammer > --- INVENTORY -------- High-capacity Storage Unit Melee Analysis Suite Melee Analysis Suite [Rating: 34] Favorites ----------- Power Ion Engine Engine Ion Engine Power Core Light Nuclear Core Propulsion Light Treads Treads Light Treads Leg Improved Carbon-fiber Leg Wheel Wheel Hover Unit Aerolev Unit Utility Hacking Suite Device Seismic Detector Storage High-capacity Storage Unit Processor Machine Analyzer Hackware Hacking Suite Protection Hardened Light Armor Plating Weapon EM Pulse Gun Energy Gun EM Pulse Gun Energy Cannon Light EM Pulse Cannon Ballistic Cannon Advanced Assault Cannon Launcher Rocket Launcher Special Weapon Remote Datajack Impact Weapon Heavy Hammer Build | -11 -10 -9 -8 -7 -7 -7 ------- Run | Scr Mat Mat Mat Fac Was Fac Slots Evolved 6 | . . 2 2 2 . . Power 1 | . . . . 1 . . Propulsion 3 | . . 2 1 . . . Utility 2 | . . . 1 1 . . Weapon . | . . . . . . . Parts Attached 91 | 8 10 41 16 7 2 7 Power 12 | 1 1 7 2 1 . . Engine 11 | 1 . 7 2 1 . . Core 1 | . 1 . . . . . Reactor . | . . . . . . . Propulsion 24 | 2 1 11 6 . 1 3 Treads 8 | 2 1 5 . . . . Leg 1 | . . . . . . 1 Wheel 6 | . . . 4 . . 2 Hover 9 | . . 6 2 . 1 . Flight . | . . . . . . . Utility 23 | 3 4 6 4 3 1 2 Device 3 | 2 . . . . . 1 Storage 12 | 1 3 5 1 1 1 . Processor 2 | . 1 1 . . . . Hackware 4 | . . . 2 2 . . Protection 2 | . . . 1 . . 1 Artifact . | . . . . . . . Weapon 32 | 2 4 17 4 3 . 2 Energy Gun 11 | 2 . 8 . 1 . . Energy Cannon 4 | . 3 1 . . . . Ballistic Gun . | . . . . . . . Ballistic Cannon 1 | . . . . 1 . . Launcher 12 | . 1 7 3 1 . . Special Weapon 1 | . . . . . . 1 Impact Weapon 3 | . . 1 1 . . 1 Slashing Weapon . | . . . . . . . Piercing Weapon . | . . . . . . . Special Melee Weapon . | . . . . . . . Unidentified Prototypes 5 | . . 3 . 2 . . Parts Lost 29 | . . 13 10 3 1 2 Power 5 | . . 2 2 . 1 . Propulsion 16 | . . 9 6 1 . . Utility 3 | . . . 1 . . 2 Weapon 5 | . . 2 1 2 . . Highest Loss Streak 6 | . . 6 5 3 1 2 To Critical Strikes 1 | . . . . 1 . . Average Slot Usage (%) 74 | . 100 81 78 67 53 31 Engine 5 | . 7 6 7 6 5 . Treads 19 | . 28 29 . . . . Wheel 1 | . . . 3 21 10 . Hover 5 | . . 1 32 . 7 2 Device 1 | . 11 . . . . 1 Storage 8 | . 11 11 9 7 6 . Processor 6 | . 5 11 . . . . Hackware 6 | . . . 17 22 23 21 Energy Gun 8 | . 13 11 . 4 . . Energy Cannon 2 | . 14 3 . . . . Launcher 3 | . . 5 2 1 . . Impact Weapon 1 | . . . 6 . . . Naked Turns . | . . . . . . . Heaviest Build 56 | 13 33 56 31 41 31 12 Greatest Support 83 | 40 40 83 40 32 20 28 Greatest Overweight (x) 14 | . . 14 3 1 3 3 Average Overweight (x) . | . . . . . . . Largest Inventory Capacity 20 | 8 15 20 15 15 15 5 Average Capacity 15 | 6 9 19 14 14 9 5 Most Carried 20 | 1 10 20 14 9 8 5 Average Carried 10 | . 6 12 11 8 7 4 Final Capacity 15 | 5 15 15 10 15 5 5 Final Carried 15 | 1 9 15 9 8 5 5 Class Distribution -------------------- 40% | Mutant 30% | Hacker-Mutant 28% | Scavenger-Mutant Dominant Class ---------------- Mutant | -10/Materials Mutant | -9/Materials Hacker-Mutant | -8/Materials Hacker-Mutant | -7/Factory Hacker-Mutant | -7/Waste Hacker-Mutant | -7/Factory Resources | -11 -10 -9 -8 -7 -7 -7 ----------- Run | Scr Mat Mat Mat Fac Was Fac Matter Collected 1314 | 280 104 575 124 12 . 219 Remotely . | . . . . . . . Salvage Created 2364 | 149 538 1469 149 33 . 26 Parts 158 | 11 39 95 13 . . . Haulers Intercepted 8 | . 2 5 1 . . . Recyclers Shooed 6 | 1 . 2 3 . . . Parts Field Recycled . | . . . . . . . Retrieved Matter . | . . . . . . . Parts Self-Destructed . | . . . . . . . Prevented . | . . . . . . . Kills | -11 -10 -9 -8 -7 -7 -7 ------- Run | Scr Mat Mat Mat Fac Was Fac Combat Hostiles Destroyed 55 | . 11 39 5 . . . Melee 3 | . . 2 1 . . . Guns 9 | . 3 6 . . . . Cannons 10 | . 3 7 . . . . AOE 28 | . 4 20 4 . . . Classes Destroyed 13 | 2 7 3 1 . . . Worker 4 | . 1 2 1 . . . Builder 6 | . 1 4 1 . . . Tunneler 5 | 4 . . . . . 1 Hauler 8 | . 2 5 1 . . . Recycler 3 | 1 . 1 1 . . . Mechanic 1 | . 1 . . . . . Operator 2 | . 1 1 . . . . Watcher 7 | . . 4 1 2 . . Swarmer 15 | . 3 10 2 . . . Grunt 31 | . 8 22 1 . . . Brawler 1 | . . 1 . . . . Sentry 6 | . . 6 . . . . Hunter 2 | . . . 2 . . . Best Kill Streak 9 | 5 8 9 8 . . 1 Combat Bots Only 7 | . 4 7 4 . . . Max Kills in Single Turn 3 | 1 2 3 3 2 . 1 Gunslinging . | . . . . . . . Exploded 2 | . 1 2 2 . . . Melee 1 | . . 1 1 . . . Uniques/NPCs Destroyed . | . . . . . . . Combat | -11 -10 -9 -8 -7 -7 -7 -------- Run | Scr Mat Mat Mat Fac Was Fac Damage Taken 4678 | . 503 2070 921 504 47 633 Core 1429 | . 106 325 286 176 47 489 Absorbed by Shields . | . . . . . . . Core Remaining (%) 55 | 100 57 18 48 . . . Volleys Fired 137 | 9 27 85 7 7 . 2 Largest 2 | 2 2 2 2 1 . 1 Hottest 112 | 80 112 112 66 33 . 5 Shots Fired 249 | 18 51 158 13 7 . 2 Gun 134 | 18 28 88 . . . . Cannon 55 | . 20 35 . . . . Launcher 58 | . 3 35 13 7 . . Special 2 | . . . . . . 2 Kinetic . | . . . . . . . Thermal 64 | 18 28 18 . . . . Explosive 58 | . 3 35 13 7 . . Electromagnetic 125 | . 20 105 . . . . Robot Hit Streak 19 | 4 19 12 5 . . 6 Robot Miss Streak 3 | 2 2 3 1 . . . Penetration Max . | . . . . . . . Secondary Targets . | . . . . . . . Shots Hit Robots 166 | 11 38 102 13 . . 2 Core Hits 126 | 6 25 75 17 3 . . Critical Kills . | . . . . . . . Critical Parts Destroyed 4 | . . 3 . . . 1 Critical Strikes 4 | . . 3 . . . 1 Smash 4 | . . 3 . . . 1 Melee Attacks 36 | . . 21 14 . . 1 Impact 36 | . . 21 14 . . 1 Slashing . | . . . . . . . Piercing . | . . . . . . . Sneak Attacks 3 | . . 1 1 . . 1 Combat Hostiles . | . . . . . . . Follow-up Attacks . | . . . . . . . Damage Inflicted 6205 | 121 893 3987 1082 56 . 66 Guns 1004 | 121 230 653 . . . . Cannons 903 | . 329 574 . . . . Explosions 3375 | . 330 2241 748 56 . . Melee 913 | . . 519 328 . . 66 Ramming 10 | . 4 . 6 . . . Kinetic . | . . . . . . . Thermal 728 | 121 345 262 . . . . Explosive 3090 | . 215 2071 748 56 . . Electromagnetic 1464 | . 329 1135 . . . . Impact 913 | . . 519 328 . . 66 Slashing . | . . . . . . . Piercing . | . . . . . . . Highest Corruption 14 | . . 2 3 3 11 14 Average Corruption 7 | . . 1 3 3 9 11 Corruption Purged . | . . . . . . . Corruption Blocked . | . . . . . . . Effects 37 | . . 5 . 2 3 27 Message Errors 10 | . . 3 . . . 7 Matter Fused 5 | . . . . . . 5 Heat Flow Errors 7 | . . . . 1 1 5 Energy Discharges 2 | . . . . . 1 1 Data Loss (minor) 7 | . . 1 . 1 . 5 Data Loss (major) 1 | . . 1 . . . . Alerts 1 | . . . . . . 1 Misdirections 4 | . . . . . 1 3 Overload Shots . | . . . . . . . Overflow Damage 379 | . 30 251 32 . . 66 Projectiles 16 | . . 16 . . . . Explosions 158 | . 30 122 6 . . . Melee 205 | . . 113 26 . . 66 Knockbacks 6 | . 1 4 1 . . . Impact 6 | . 1 4 1 . . . Kinetic . | . . . . . . . Secondary . | . . . . . . . Self-Inflicted Damage 275 | . 38 178 45 14 . . Shots 11 | . 1 8 1 1 . . Rammed 4 | . 1 . 2 . . 1 Targets Rammed 4 | . 1 . 2 . . 1 Kicked . | . . . . . . . Crushed . | . . . . . . . Highest Temperature 481 | 162 481 192 5 163 144 267 Average Temperature 80 | 80 148 40 3 163 76 116 Received Heat Transfer 1620 | . 210 870 279 . . 261 Effects 5 | . 5 . . . . . Shutdowns 1 | . 1 . . . . . Interference 4 | . 4 . . . . . Siege Activations . | . . . . . . . Robots Corrupted 4 | . . 4 . . . . Combat Hostiles 3 | . . 3 . . . . Parts Fried 22 | . 1 18 2 . . 1 Impact Corruptions 9 | . . 6 2 . . 1 Robots Melted 1 | . 1 . . . . . Combat Hostiles 1 | . 1 . . . . . Parts Melted 3 | . 3 . . . . . Heat Transferred 1498 | 275 725 498 . . . . Parts Sabotaged . | . . . . . . . Parts Stolen . | . . . . . . . Parts Stripped . | . . . . . . . Power Chain Reactions 5 | . 2 3 . . . . Missiles Intercepted . | . . . . . . . Alert | -11 -10 -9 -8 -7 -7 -7 ------- Run | Scr Mat Mat Mat Fac Was Fac Peak Influence 1234 | 25 430 1234 706 303 100 260 Initial 518 | . 16 181 518 250 100 63 Average 485 | 9 181 643 537 271 97 151 Maximum Alert Level 4 | . 2 4 3 1 . 1 Low Security (%) 19 | 100 60 1 . . 100 75 Level 1 23 | . 21 23 . 100 . 24 Level 2 36 | . 17 39 99 . . . Level 3 14 | . . 25 . . . . Level 4 5 | . . 10 . . . . Level 5 . | . . . . . . . High Security . | . . . . . . . Max Security . | . . . . . . . Squads Dispatched 20 | . 2 7 2 2 . 7 Investigation 11 | . . 4 1 2 . 4 Extermination . | . . . . . . . Reinforcement 6 | . 2 1 . . . 3 Assault 3 | . . 2 1 . . . Garrison . | . . . . . . . Intercept . | . . . . . . . Searches Triggered . | . . . . . . . Construction Impeded . | . . . . . . . Haulers Reinforced . | . . . . . . . Active Scanning Responses . | . . . . . . . Cargo Convoy Interrupts . | . . . . . . . Stealth | -11 -10 -9 -8 -7 -7 -7 --------- Run | Scr Mat Mat Mat Fac Was Fac Distress Signals 8 | . 1 4 2 . . 1 Communications Jammed . | . . . . . . . Distress Signals . | . . . . . . . Times Spotted 138 | . 15 71 22 2 5 23 Peak Tracking Total 9 | . 5 8 9 2 5 8 Tactical Retreats 12 | . . 4 2 . . 6 Traps | -11 -10 -9 -8 -7 -7 -7 ------- Run | Scr Mat Mat Mat Fac Was Fac Traps Triggered 5 | . 1 1 1 1 . 1 Indirectly . | . . . . . . . Trap Hack Attempts . | . . . . . . . Triggered . | . . . . . . . Disarmed . | . . . . . . . Reprogrammed . | . . . . . . . Reused . | . . . . . . . Traps Extracted . | . . . . . . . Installed . | . . . . . . . Triggered 1 | . . 1 . . . . Machines | -11 -10 -9 -8 -7 -7 -7 ---------- Run | Scr Mat Mat Mat Fac Was Fac Machines Disabled 9 | . 3 2 3 1 . . Max in Single Turn 2 | . 2 1 1 1 . . Machines Sabotaged . | . . . . . . . Garrisons Compromised . | . . . . . . . Overloaded Fab Kills . | . . . . . . . Hacking | -11 -10 -9 -8 -7 -7 -7 --------- Run | Scr Mat Mat Mat Fac Was Fac Machines Accessed 22 | . . 10 1 2 . 9 Terminals 16 | . . 9 1 1 . 5 Fabricators 1 | . . . . 1 . . Repair Stations . | . . . . . . . Recycling Units 3 | . . 1 . . . 2 Scanalyzers 1 | . . . . . . 1 Garrison Access 1 | . . . . . . 1 Total Hacks 71 | . . 31 1 5 . 34 Successful 44 | . . 14 1 5 . 24 Failed 26 | . . 16 . . . 10 Catastrophic 4 | . . 4 . . . . Database Lockouts 1 | . . 1 . . . . Manual 38 | . . 31 1 . . 6 Terminals 51 | . . 29 1 3 . 18 Fabricators 2 | . . . . 2 . . Repair Stations . | . . . . . . . Recycling Units 10 | . . 2 . . . 8 Scanalyzers 5 | . . . . . . 5 Garrison Access 3 | . . . . . . 3 Terminal Hacks 21 | . . 8 . 3 . 10 Record 1 | . . . . . . 1 Robot Schematic 2 | . . 2 . . . . Robot Analysis 5 | . . 1 . 2 . 2 Open DSF 1 | . . . . . . 1 Branch Access Points 2 | . . 1 . . . 1 Fabricator Index 1 | . . . . 1 . . Recycling Unit Index 1 | . . . . . . 1 Alert Level 2 | . . 1 . . . 1 Unreport Threat 1 | . . 1 . . . . Locate Traps 1 | . . 1 . . . . Security Status 1 | . . . . . . 1 Transport Status 1 | . . . . . . 1 Hauler Manifests 1 | . . 1 . . . . Zone Layout 1 | . . . . . . 1 Fabricator Hacks 2 | . . . . 2 . . Load Schematic 1 | . . . . 1 . . Build 1 | . . . . 1 . . Repair Station Hacks . | . . . . . . . Recycling Unit Hacks 7 | . . 2 . . . 5 Recycle Component 1 | . . . . . . 1 Process 3 | . . 1 . . . 2 Report Inventory 1 | . . . . . . 1 Retrieve Matter 2 | . . 1 . . . 1 Scanalyzer 5 | . . . . . . 5 Insert Component 2 | . . . . . . 2 Analyze 3 | . . . . . . 3 Garrison Access Hacks 1 | . . . . . . 1 Coupler Status 1 | . . . . . . 1 Unauthorized Hacks 7 | . . 3 1 . . 3 Terminals 7 | . . 3 1 . . 3 Assimilate 3 | . . 1 1 . . 1 Botnet 4 | . . 2 . . . 2 Fabricators . | . . . . . . . Repair Stations . | . . . . . . . Recycling Units . | . . . . . . . Scanalyzers . | . . . . . . . Garrison Access . | . . . . . . . Data Cores Recovered . | . . . . . . . Used . | . . . . . . . Hacking Detections 17 | . . 8 . 2 . 7 Full Trace Events 13 | . . 7 . 2 . 4 Feedback Events 1 | . . 1 . . . . Corruption 1 | . . 1 . . . . Feedback Blocked . | . . . . . . . Robot Schematics Acquired 2 | . . 2 . . . . Robots Built 2 | . . . . 2 . . Authchips . | . . . . . . . Time 40 | . . . . 40 . . Total Robot Build Rating 2 | . . . . 2 . . Part Schematics Acquired 2 | . . . . . . 2 Parts Built . | . . . . . . . Authchips . | . . . . . . . Time . | . . . . . . . Total Part Build Rating . | . . . . . . . Parts Repaired . | . . . . . . . Time . | . . . . . . . Parts Recycled 1 | . . . . . . 1 Recycled Matter 341 | . . 280 . . . 61 Retrieved Matter 482 | . . 456 . . . 26 Retrieved Components . | . . . . . . . Parts Scanalyzed 2 | . . . . . . 2 Part Schematics Acquired 2 | . . . . . . 2 Parts Damaged . | . . . . . . . Bothacking | -11 -10 -9 -8 -7 -7 -7 ------------ Run | Scr Mat Mat Mat Fac Was Fac Used RIF Installer . | . . . . . . . Robots Hacked 1 | . . . . . . 1 Non-combat 1 | . . . . . . 1 Combat . | . . . . . . . Robot Hacks Applied 1 | . . . . . . 1 find_fabricator 1 | . . . . . . 1 Relay Couplers Released . | . . . . . . . Fabnet Peak Effective % . | . . . . . . . Robots Rewired . | . . . . . . . Allies Hacked . | . . . . . . . Hacks Repelled . | . . . . . . . Allies | -11 -10 -9 -8 -7 -7 -7 -------- Run | Scr Mat Mat Mat Fac Was Fac Total Allies 4 | . . . 1 2 . 1 Largest Group 2 | . . . 1 2 . 1 Highest-Rated Group 26 | . . . 10 18 . 26 Highest-Rated Ally 26 | . . . 10 9 . 26 Total Orders 3 | . . . . 2 . 1 ROAM 1 | . . . . 1 . . FOLLOW 2 | . . . . 1 . 1 Ally Attacks . | . . . . . . . Total Damage . | . . . . . . . Kills . | . . . . . . . Allies Corrupted . | . . . . . . . Allies Melted . | . . . . . . . Intel | -11 -10 -9 -8 -7 -7 -7 ------- Run | Scr Mat Mat Mat Fac Was Fac Robot Analysis Total 5 | . . 1 . 2 . 2 Derelict Logs Recovered . | . . . . . . . Drone Launches . | . . . . . . . Drone Recoveries . | . . . . . . . Exploration | -11 -10 -9 -8 -7 -7 -7 ------------- Run | Scr Mat Mat Mat Fac Was Fac Turns Passed 4383 | 124 297 2504 564 232 77 585 Spaces Moved 2844 | 55 113 1143 437 203 93 800 Core 822 | 2 . 1 . . 36 783 Treads 1246 | 53 113 1080 . . . . Legs 16 | . . . . . . 16 Wheels 378 | . . . 117 203 57 1 Hover 382 | . . 62 320 . . . Flight . | . . . . . . . Fastest Speed 38 | 50 160 43 38 83 50 50 Average Speed 111 | 156 160 159 58 93 79 69 Slowest Speed 750 | 160 160 750 230 98 200 200 Overloaded Moves . | . . . . . . . Propulsion Burnouts . | . . . . . . . Robots Hopped . | . . . . . . . Cave-ins Triggered 1 | . . . . 1 . . Exploration Rate (%) 37 | 4 27 83 41 6 72 30 Regions Visited 6 Branch Regions . Pre-discovered Areas . | . . . . . . . Known Exits Taken 1 | . . 1 . . . . Unknown Exits Taken 3 | 1 1 . 1 . . . Scrap Searched . | . . . . . . . Spaces Dug . | . . . . . . . Terrain Destroyed 365 | . 24 237 32 72 . . Melee . | . . . . . . . Projectile . | . . . . . . . AOE 365 | . 24 237 32 72 . . Terrain Rammed . | . . . . . . . Walls Destroyed . | . . . . . . . Machines Disabled . | . . . . . . . Actions | -11 -10 -9 -8 -7 -7 -7 --------- Run | Scr Mat Mat Mat Fac Was Fac Total 3736 | 72 176 1620 705 237 95 831 Wait 544 | . 13 284 221 19 . 7 Move 2838 | 54 112 1142 436 202 92 800 Hop . | . . . . . . . Pick Up 39 | . 8 27 1 . . 3 Fast Attach 38 | 8 1 13 7 3 1 5 Attach 18 | . 2 7 5 2 . 2 Detach 9 | 1 1 2 2 1 . 2 Swap 35 | . 7 21 4 2 1 . Drop 37 | . 4 18 6 . 1 8 Fire 137 | 9 27 85 7 7 . 2 Melee 36 | . . 21 14 . . 1 Ram 3 | . . . 2 . . 1 Kick . | . . . . . . . Crush 1 | . 1 . . . . . Escape Stasis 1 | . . . . 1 . . Rewire . | . . . . . . . Trap . | . . . . . . . Miscellaneous . | . . . . . . . Route ------- -11/Scrapyard -10/Materials -9/Materials (discovered 4 exits: *Mat x3 / Min) -8/Materials -7/Factory -7/Waste -7/Factory (discovered 3 exits: Sto / Low x2) History --------- Turn | Location | Event 9 | -11/Scrapyard | Discovered new exit (range 15) 125 | -11/Scrapyard | Entered Materials 308 | -10/Materials | Build established: Mutant 365 | -10/Materials | Discovered new exit (range 16) 422 | -10/Materials | Entered another Materials area 422 | -9/Materials | Evolved 2 slots: Propulsion x2 1040 | -9/Materials | Discovered new exit (range 11) 1666 | -9/Materials | Build established: Scavenger-Mutant 2022 | -9/Materials | First assault squad dispatched 2067 | -9/Materials | Central database locked down 2078 | -9/Materials | Destroyed 7 combat bots 2402 | -9/Materials | Discovered new exit (range 5) 2412 | -9/Materials | Identified exit to Materials 2478 | -9/Materials | Identified exit to Mines 2816 | -9/Materials | Core integrity fell below 50% 2840 | -9/Materials | Lost 6 parts (1p4n1w) 2856 | -9/Materials | Core integrity fell below 20% 2923 | -9/Materials | Build established: Mutant 2925 | -9/Materials | Discovered exit to Materials (range 4) 2926 | -9/Materials | Entered another Materials area 2926 | -8/Materials | Evolved 2 slots: Propulsion x1, Utility x1 3235 | -8/Materials | Build established: Hacker-Mutant 3326 | -8/Materials | First assault squad dispatched 3358 | -8/Materials | Lost 3 parts (3n) 3476 | -8/Materials | Core integrity fell below 50% 3480 | -8/Materials | Discovered new exit (range 9) 3490 | -8/Materials | Entered Factory 3490 | -7/Factory | Evolved 2 slots: Power x1, Utility x1 3497 | -7/Factory | Lost 5 parts (1p2n1u1w) 3555 | -7/Factory | Fabricated W-16 Scout? 3681 | -7/Factory | Crushed by falling debris 3722 | -7/Factory | Sucked down chute 3722 | -7/Factory | Entered Waste 3726 | -7/Waste | Lost 3 parts (1n2w) 3737 | -7/Waste | EMP discharged 3737 | -7/Waste | System corruption reached 10% 3751 | -7/Waste | Spotted C-40 Crusher 3753 | -7/Waste | Spotted C-40 Crusher 3754 | -7/Waste | Spotted C-40 Crusher 3763 | -7/Waste | Spotted C-40 Crusher 3769 | -7/Waste | Spotted C-40 Crusher 3779 | -7/Waste | Crushed by Compactor (1 part destroyed, 2 dropped) 3795 | -7/Waste | Discovered new exit (range 10) 3799 | -7/Waste | Entered Factory 3866 | -7/Factory | Core integrity fell below 50% 4304 | -7/Factory | Identified exit to Storage 4304 | -7/Factory | Identified exit to Lower Caves 4319 | -7/Factory | Core integrity fell below 20% 4384 | -7/Factory | Destroyed by G-47 Trooper with Particle Gun Last Messages --------------- 04322_ T9Y&GRUPLWO%JQ7%WQL=X3OH 04332_ Acquired Remote Datajack. 04335_ Connecting with Garrison Access... >>Couplers Installed: Relay Coupler [Brawler] (18) Relay Coupler [Hunter] (12) Relay Coupler [Grunt] (18) Relay Coupler [Swarmer] (28) 04335_ ALERT: Suspicious activity at Garrison Access F002. Dispatching Investigation squad. 04339_ Jacked A-02 Transporter... >>find_fabricator Pinpointed nearest Fabricator: (53,120) (already known). 04342_ FZQG,IX6FXXHRCO |#ET:ZW 04359_ K-01 Serf cleans the Nuclear Reactor. 04361_ 6 UQLAIG&NQ XMNVFAFEZ,>ZCQBLD|ST6N|K 04366_ Acquired 193 matter. 04372_ Acquired Arm. Huge Wheel. 04384_ System corrupted: Matter fused (-9). Map ----- +----------------------------------------------------+ | ??# ??# #?# """ """ """ G#????????????????? | | ###+??# #?# """ """ """ ""#????????????????? | | ????# #?# ""#????????????????? | | ??### ### #????????????????? | | ????# ####+#########/#######+#####???????? | | ????# ######### | | ????# | | ????# T" | | ????+ " | | ????# | | ????# ? | | ????# ######### | | ????# ############### T### # | | ????#####+#####?????????????####?# # | | ?????????????????????????????????# # ! | | ?????????????????????????????????# # | | ?????????????????????????????????# + """ "" | | ????????????????????############## # """ "" | | ????????????????????# # # """ "" | | ????????????????????# """""" # # | | ????????????????????# """""" # # """ "" | | ????????????????????# g """""" # # """ "" | | ????????????????????# g""""""g# # """ "" | | ????????????????????# g gg # + | | ????????????????????# """""" # ######### | | ????????????????????# @"""""" + #???????? | | ????????????????????# """""" # #???????? | | ????????????????????# """""" # #???????? | | ????????????????????# # #???????? | | ????????????????????# + #???????? | | ????????????????????#################+#######????? | | ???????????????????????????????# = #????? | | ???????????????????????????????# """ """ #????? | | ???????????????????????????????# """ """ #????? | | ???????????????????????????????# """ """ #????? | | ???????????????????????????????# #????? | | ???????????????????????????????# """ """ #????? | | ???????????????????????????????# """ """ #????? | | ???????????????????????????????# ! """ """ #????? | | ???????????????????????????????# #????? | | ???????????????????????????????# ! #????? | | ???????????????????????????????# #????? | | ???????????????????????????????? ?????? | | ?????????????????????????????????#########???????? | | ?????????????????????????????????????????????????? | | ?????????????????????????????????????????????????? | | | | | | | | | +----------------------------------------------------+ Best States ------------- Heat Dissipation 34 Energy Generation 18 Energy Capacity 310 Matter Stores 300 Matter Capacity 300 Sight Range 16 Terrain Scan Range 16 Terrain Scan Density 10 Armor Coverage 150 Evasion (%) 57 Recoil Reduction 4 Offensive Hacking 30 Item Schematics ----------------- Arm. Huge Wheel | -7/Factory | Scanalyzed Melee Analysis Suite | -7/Factory | Scanalyzed Robot Schematics ------------------ W-16 Scout | -9/Materials | Hacked G-34 Mercenary | -9/Materials | Hacked Fabricated ------------ W-16 Scout | x2 | -7/Factory Alien Tech Used ----------------- None Achievements -------------- Backstab Significant Disruption True Hacker Challenges ------------ None Game ------ Seed ScanPrecisionArchive Manual? 0 Play Time 01:39:55 Cumulative 38.7 hours Start 2023.02.02 @ 09:29:42 End 2023.02.02 @ 12:59:58 Sessions 3 Manual Loads 0 Difficulty Rogue Special Mode None Game No. 27 Rogue 27 Adventurer 0 Explorer 0 Win Type - Total 0 Types 0/0/0/0/0/0/0/0/0 Lore% 19 Gallery% 27 Achievement% 21 Wizard Run 0 Options --------- ASCII 0 Keyboard 0 Movement Mouse Keybinds 0 Fullscreen 1 Font 36/Smallcaps Map View 76x50 Tactical HUD 1 Map Filters NONE Filters NONE Steam 1 RUN: c398e970-2da0-47c0-af83-d3ecc6d156d2